fUSD/lending_fUSD_20260516
["ID","MTS","AMOUNT","RATE_DAILY","PERIOD"]
[422393248,1778923839000,-158.93919027,0.00014999,2]
[422393259,1778923839000,-500.0,0.00014999,2]
[422393246,1778923839000,-500.0,0.00014999,2]
[422393330,1778923840000,-2343.04378,0.00014315,2]
[422393329,1778923840000,-151.88,0.00013401,2]
[422393356,1778923843000,-490.21838724,0.00014883,2]
[422393355,1778923843000,-389.258881,0.00014315,2]
[422393359,1778923843000,-269.48494619,0.00014896,2]
[422393357,1778923843000,-147.57611673,0.00014896,2]
[422393360,1778923843000,-1732.514422,0.00014896,2]
[422393358,1778923843000,-159.15740716,0.000147,2]
[422393362,1778923843000,-2767.2743954,0.00015,2]
[422393361,1778923843000,-1678.7256046,0.00014896,2]
[422393372,1778923846000,-293.235,0.00015,2]
[422393370,1778923846000,-50064.9325016,0.00015,2]
[422393371,1778923846000,-12845.92,0.00015,2]
[422393369,1778923846000,-1950.0,0.00015,2]
[422393368,1778923846000,-19921.8674,0.00015,2]
[422393367,1778923846000,-6423.25656448,0.00015,2]
[422393383,1778923854000,31.66197457,9.19e-05,2]
[422393381,1778923854000,120.33802543,9.19e-05,2]
[422393399,1778923870000,267.69774823,0.00025929,120]
[422393401,1778923908000,245.24923265,0.00026517,120]
[422393402,1778923922000,178.4,0.00015,120]
[422393403,1778923941000,208.55393844,0.00026517,120]
[422393404,1778923958000,591.836,0.0003,120]
[422393405,1778924044000,280.70599597,0.00026448,120]
[422393433,1778924109000,167.0,0.00028115,120]
[422393434,1778924110000,167.0,0.0002952,120]
[422393435,1778924112000,160.56,0.00015,120]
[422393438,1778924302000,150.0,0.00015,120]
[422393440,1778924405000,167.0,0.00028311,120]
[422393441,1778924406000,167.0,0.00029727,120]
[422393444,1778924488000,174.82,0.00023,120]
[422393443,1778924488000,216.8,0.000271,120]
[422393445,1778924491000,150.0,0.00015,120]
[422393447,1778924603000,500.0,0.00025363,120]
[422393448,1778924603000,500.0,0.0002707,120]
[422393449,1778924604000,500.0,0.00028777,120]
[422393453,1778924682000,150.0,0.00015,120]
[422393454,1778924703000,167.0,0.00027851,120]
[422393458,1778924728000,226.0,0.00028004,120]
[422393459,1778924729000,226.0,0.00029404,120]
[422393460,1778924819000,-248.32069494,0.00010085,2]
[422393462,1778924823000,158.3,6.642e-05,2]
[422393466,1778924823000,158.3,9.194e-05,2]
[422393465,1778924823000,158.3,8.556e-05,2]
[422393464,1778924823000,158.3,7.918e-05,2]
[422393463,1778924823000,158.3,7.28e-05,2]
[422393467,1778924824000,158.3,9.832e-05,2]
[422393468,1778924863000,450.0,0.00030137,120]
[422393469,1778924871000,150.0,0.00015,120]
[422393475,1778924895000,-173.02069494,0.00010716,2]
[422393474,1778924895000,-158.3,0.0001047,2]
[422393473,1778924895000,-278.0,0.00010301,2]
[422393472,1778924895000,-150.0,0.000102,2]
[422393471,1778924895000,-150.0,0.00010187,2]
[422393470,1778924895000,-90.67930506,0.00010085,2]
[422393476,1778924907000,-76.97930506,0.00010716,2]
[422393479,1778924907000,-250.0,0.00010983,2]
[422393477,1778924907000,-175.05,0.00010823,2]
[422393478,1778924907000,-339.0,0.00010877,2]
[422393517,1778925034000,-343.29292514,0.00012322,2]
[422393519,1778925034000,-1870.88949691,0.00012322,2]
[422393520,1778925034000,-676.145165,0.00012322,2]
[422393518,1778925034000,-369.98931999,0.00012322,2]
[422393516,1778925034000,-403.99858896,0.00012322,2]
[422393511,1778925034000,-158.3,0.00011108,2]
[422393513,1778925034000,-119.25529614,0.00011746,2]
[422393514,1778925034000,-39.04470386,0.00011746,2]
[422393512,1778925034000,-250.0,0.00011281,2]
[422393521,1778925034000,-338.90182236,0.00012384,2]
[422393510,1778925034000,-250.0,0.00011055,2]
[422393515,1778925034000,-250.0,0.00012102,2]
[422393523,1778925034000,-527.83739594,0.00012384,2]
[422393509,1778925034000,-150.0,0.00011002,2]
[422393524,1778925034000,-158.3,0.00012385,2]
[422393522,1778925034000,-333.2607817,0.00012384,2]
[422393533,1778925034000,-323.42,0.00013193,2]
[422393535,1778925034000,-245.54,0.00013224,2]
[422393536,1778925034000,-2000.0,0.00013239,2]
[422393534,1778925034000,-150.0,0.00013193,2]
[422393537,1778925034000,-218.88,0.00013331,2]
[422393532,1778925034000,-364.21,0.00013158,2]
[422393528,1778925034000,-500.0,0.00012767,2]
[422393531,1778925034000,-534.58,0.00013137,2]
[422393529,1778925034000,-109.91533551,0.00013023,2]
[422393527,1778925034000,-13368.9479852,0.00012594,2]
[422393526,1778925034000,-405.21062676,0.00012594,2]
[422393525,1778925034000,-182.39092406,0.00012594,2]
[422393530,1778925034000,-48.38466449,0.00013023,2]
[422393556,1778925035000,-255.0,0.00014301,2]
[422393558,1778925035000,-2312.0,0.0001436,2]
[422393557,1778925035000,-6644.86592362,0.00014323,2]
[422393559,1778925035000,-900.0,0.000144,5]
[422393554,1778925035000,-150.0,0.00014237,2]
[422393561,1778925035000,-152.0,0.00014426,7]
[422393564,1778925035000,-152.0,0.00014455,7]
[422393565,1778925035000,-1433.04,0.00014497,2]
[422393568,1778925035000,-9999.99,0.00014504,2]
[422393566,1778925035000,-1900.0,0.000145,5]
[422393575,1778925035000,-350.0,0.00014537,2]
[422393574,1778925035000,-2653.24,0.00014504,2]
[422393555,1778925035000,-16908.435557,0.0001425,2]
[422393567,1778925035000,-150.99,0.00014504,2]
[422393563,1778925035000,-500.0,0.00014451,2]
[422393560,1778925035000,-6237.78822089,0.00014404,2]
[422393548,1778925035000,-166.66,0.00013665,2]
[422393551,1778925035000,-534.58,0.00013794,2]
[422393570,1778925035000,-1487.69,0.00014504,2]
[422393538,1778925035000,-534.58,0.00013466,2]
[422393540,1778925035000,-150.0,0.00013488,2]
[422393550,1778925035000,-164.73,0.00013741,2]
[422393539,1778925035000,-150.0,0.00013488,2]
[422393541,1778925035000,-150.0,0.00013488,2]
[422393544,1778925035000,-150.0,0.00013488,2]
[422393542,1778925035000,-205.77084112,0.00013488,2]
[422393546,1778925035000,-150.0,0.00013615,2]
[422393549,1778925035000,-231.16,0.00013694,2]
[422393543,1778925035000,-255.45324773,0.00013488,2]
[422393547,1778925035000,-1680.0,0.00013622,2]
[422393545,1778925035000,-285.28,0.00013521,2]
[422393552,1778925035000,-166.66,0.00014116,2]
[422393553,1778925035000,-534.58,0.00014123,2]
[422393562,1778925035000,-534.58,0.00014451,2]
[422393571,1778925035000,-3221.58,0.00014504,2]
[422393572,1778925035000,-81983.93,0.00014504,2]
[422393573,1778925035000,-19508.96,0.00014504,2]
[422393588,1778925035000,-827.332949,0.00014678,2]
[422393594,1778925035000,-164.106006,0.00014699,2]
[422393590,1778925035000,-350.0,0.0001468,2]
[422393592,1778925035000,-2312.0,0.0001468,2]
[422393593,1778925035000,-160.0,0.00014699,2]
[422393595,1778925035000,-168.212013,0.00014699,2]
[422393601,1778925035000,-160.0,0.00014752,2]
[422393603,1778925035000,-233.50790473,0.00014752,2]
[422393609,1778925035000,-553.67792944,0.00014754,2]
[422393608,1778925035000,-320.0,0.00014752,2]
[422393605,1778925035000,-160.0,0.00014752,2]
[422393604,1778925035000,-441.815635,0.00014752,2]
[422393607,1778925035000,-290.966436,0.00014752,2]
[422393606,1778925035000,-225.483218,0.00014752,2]
[422393569,1778925035000,-5937.1,0.00014504,2]
[422393591,1778925035000,-2312.0,0.0001468,2]
[422393599,1778925035000,-356.93033097,0.00014747,2]
[422393602,1778925035000,-67.39991227,0.00014752,2]
[422393600,1778925035000,-2500.0,0.0001475,2]
[422393597,1778925035000,-500.0,0.00014725,2]
[422393576,1778925035000,-160.0,0.00014553,2]
[422393579,1778925035000,-166.66,0.00014567,2]
[422393578,1778925035000,-2640.931721,0.00014553,2]
[422393610,1778925035000,-1141.28489559,0.00014759,2]
[422393586,1778925035000,-160.0,0.00014678,2]
[422393580,1778925035000,-9735.56699899,0.00014573,2]
[422393582,1778925035000,-22850.48959391,0.00014588,2]
[422393584,1778925035000,-350.0,0.00014607,2]
[422393577,1778925035000,-1400.46586,0.00014553,2]
[422393587,1778925035000,-493.666474,0.00014678,2]
[422393583,1778925035000,-2900.0,0.000146,5]
[422393585,1778925035000,-350.0,0.00014611,2]
[422393589,1778925035000,-217.283829,0.00014678,2]
[422393596,1778925035000,-3900.0,0.000147,5]
[422393598,1778925035000,-320.0,0.00014733,2]
[422393581,1778925035000,-6796.28220609,0.00014588,2]
[422393638,1778925038000,-853.1559,0.00014882,2]
[422393640,1778925038000,-1109.21196528,0.00014885,2]
[422393643,1778925038000,-1109.21196528,0.00014893,2]
[422393641,1778925038000,-1109.21196528,0.00014888,2]
[422393634,1778925038000,-150.0,0.00014852,2]
[422393642,1778925038000,-1109.21196528,0.0001489,2]
[422393639,1778925038000,-1109.21196528,0.00014883,2]
[422393646,1778925038000,-34803.5117868,0.00014896,2]
[422393647,1778925038000,-1109.21196528,0.00014898,2]
[422393649,1778925038000,-900.0,0.000149,5]
[422393648,1778925038000,-5000.0,0.000149,2]
[422393660,1778925038000,-500.0,0.00014977,2]
[422393658,1778925038000,-1084.73905795,0.00014977,5]
[422393645,1778925038000,-1109.21196528,0.00014895,2]
[422393654,1778925038000,-163.0,0.0001496,2]
[422393653,1778925038000,-1110.99,0.00014931,2]
[422393644,1778925038000,-2000.0,0.00014894,2]
[422393656,1778925038000,-195.6442493,0.00014967,2]
[422393635,1778925038000,-1109.21196536,0.00014878,2]
[422393618,1778925038000,-154.3164136,0.00014776,2]
[422393636,1778925038000,-200.0,0.0001488,2]
[422393615,1778925038000,-6237.78822084,0.00014459,2]
[422393616,1778925038000,-120.02284552,0.00014759,2]
[422393617,1778925038000,-320.0,0.0001477,2]
[422393650,1778925038000,-1109.21196528,0.000149,2]
[422393622,1778925038000,-486.98,0.00014807,2]
[422393619,1778925038000,-320.0,0.00014781,2]
[422393620,1778925038000,-4800.0,0.000148,5]
[422393621,1778925038000,-364.21,0.00014803,2]
[422393625,1778925038000,-500.0,0.00014849,2]
[422393624,1778925038000,-500.0,0.00014849,2]
[422393626,1778925038000,-500.0,0.00014849,2]
[422393627,1778925038000,-500.0,0.00014849,2]
[422393623,1778925038000,-354.540293,0.00014825,2]
[422393628,1778925038000,-500.0,0.00014849,2]
[422393630,1778925038000,-500.0,0.00014849,2]
[422393631,1778925038000,-64661.85482245,0.0001485,2]
[422393632,1778925038000,-15639.70307467,0.0001485,2]
[422393629,1778925038000,-500.0,0.00014849,2]
[422393633,1778925038000,-24495.87741852,0.0001485,2]
[422393637,1778925038000,-1109.21196528,0.0001488,2]
[422393662,1778925038000,-7419.0835631,0.00014978,2]
[422393651,1778925038000,-3191.23833026,0.00014908,2]
[422393676,1778925038000,-198.14496198,0.00014982,2]
[422393703,1778925038000,-161.17961984,0.00014999,2]
[422393713,1778925038000,-500.0,0.00014999,2]
[422393719,1778925038000,-500.0,0.00014999,2]
[422393717,1778925038000,-566.83855063,0.00014999,2]
[422393721,1778925038000,-500.0,0.00014999,2]
[422393725,1778925038000,-187.7150481,0.00014999,2]
[422393727,1778925038000,-500.0,0.00014999,2]
[422393705,1778925038000,-500.0,0.00014999,2]
[422393701,1778925038000,-500.0,0.00014999,2]
[422393707,1778925038000,-500.0,0.00014999,2]
[422393711,1778925038000,-500.0,0.00014999,2]
[422393734,1778925038000,-1084.73905795,0.00014999,5]
[422393730,1778925038000,-500.0,0.00014999,2]
[422393732,1778925038000,-500.0,0.00014999,2]
[422393738,1778925038000,-500.0,0.00014999,2]
[422393736,1778925038000,-500.0,0.00014999,2]
[422393741,1778925038000,-500.0,0.00014999,2]
[422393665,1778925038000,-39455.3067762,0.00014978,2]
[422393709,1778925038000,-500.0,0.00014999,2]
[422393685,1778925038000,-500.0,0.00014998,2]
[422393743,1778925038000,-500.0,0.00014999,2]
[422393678,1778925038000,-150.0,0.00014986,2]
[422393695,1778925038000,-500.0,0.00014999,2]
[422393677,1778925038000,-888.64769375,0.00014986,2]
[422393672,1778925038000,-166.0,0.00014978,2]
[422393669,1778925038000,-1843.1628651,0.00014978,2]
[422393667,1778925038000,-716.8629492,0.00014978,2]
[422393674,1778925038000,-500.0,0.00014982,2]
[422393668,1778925038000,-117777.7516017,0.00014978,2]
[422393673,1778925038000,-500.0,0.00014982,2]
[422393671,1778925038000,-8020.7414524,0.00014978,2]
[422393675,1778925038000,-500.0,0.00014982,2]
[422393679,1778925038000,-166.93728157,0.00014986,2]
[422393689,1778925038000,-500.0,0.00014999,2]
[422393691,1778925038000,-173.48855212,0.00014999,2]
[422393693,1778925038000,-500.0,0.00014999,2]
[422393697,1778925038000,-500.0,0.00014999,2]
[422393687,1778925038000,-269.1813222,0.00014999,2]
[422393683,1778925038000,-151.0,0.00014997,2]
[422393681,1778925038000,-150.0,0.00014986,2]
[422393699,1778925038000,-500.0,0.00014999,2]
[422393670,1778925038000,-134015.9538021,0.00014978,2]
[422393783,1778925039000,-500.0,0.00014999,2]
[422393775,1778925039000,-500.0,0.00014999,2]
[422393776,1778925039000,-500.0,0.00014999,2]
[422393772,1778925039000,-500.0,0.00014999,2]
[422393773,1778925039000,-500.0,0.00014999,2]
[422393774,1778925039000,-500.0,0.00014999,2]
[422393777,1778925039000,-500.0,0.00014999,2]
[422393780,1778925039000,-500.0,0.00014999,2]
[422393784,1778925039000,-500.0,0.00014999,2]
[422393779,1778925039000,-500.0,0.00014999,2]
[422393782,1778925039000,-500.0,0.00014999,2]
[422393786,1778925039000,-500.0,0.00014999,2]
[422393787,1778925039000,-500.0,0.00014999,2]
[422393785,1778925039000,-500.0,0.00014999,2]
[422393788,1778925039000,-500.0,0.00014999,2]
[422393789,1778925039000,-500.0,0.00014999,2]
[422393769,1778925039000,-500.0,0.00014999,2]
[422393781,1778925039000,-500.0,0.00014999,2]
[422393771,1778925039000,-500.0,0.00014999,2]
[422393759,1778925039000,-500.0,0.00014999,2]
[422393767,1778925039000,-500.0,0.00014999,2]
[422393791,1778925039000,-500.0,0.00014999,2]
[422393749,1778925039000,-500.0,0.00014999,2]
[422393745,1778925039000,-500.0,0.00014999,2]
[422393747,1778925039000,-500.0,0.00014999,2]
[422393751,1778925039000,-500.0,0.00014999,2]
[422393764,1778925039000,-500.0,0.00014999,2]
[422393754,1778925039000,-500.0,0.00014999,2]
[422393765,1778925039000,-500.0,0.00014999,2]
[422393770,1778925039000,-500.0,0.00014999,2]
[422393766,1778925039000,-158.93919027,0.00014999,2]
[422393758,1778925039000,-500.0,0.00014999,2]
[422393762,1778925039000,-500.0,0.00014999,2]
[422393763,1778925039000,-500.0,0.00014999,2]
[422393757,1778925039000,-500.0,0.00014999,2]
[422393761,1778925039000,-500.0,0.00014999,2]
[422393760,1778925039000,-500.0,0.00014999,2]
[422393768,1778925039000,-500.0,0.00014999,2]
[422393778,1778925039000,-679.87148587,0.00014999,2]
[422393756,1778925039000,-611.79619842,0.00014999,2]
[422393801,1778925039000,-500.0,0.00014999,2]
[422393819,1778925039000,-2210.41753017,0.00015,2]
[422393793,1778925039000,-500.0,0.00014999,2]
[422393813,1778925039000,-345407.17271337,0.00015,2]
[422393816,1778925039000,-150.0,0.00015,2]
[422393817,1778925039000,-21659.16403148,0.00015,2]
[422393823,1778925039000,-628.62,0.00015,2]
[422393820,1778925039000,-150.0,0.00015,2]
[422393821,1778925039000,-150.0,0.00015,2]
[422393818,1778925039000,-150.0,0.00015,2]
[422393832,1778925039000,-150.0,0.00015,2]
[422393822,1778925039000,-206.001,0.00015,2]
[422393826,1778925039000,-150.0,0.00015,2]
[422393828,1778925039000,-299.825,0.00015,2]
[422393825,1778925039000,-150.0,0.00015,2]
[422393829,1778925039000,-150.0,0.00015,2]
[422393831,1778925039000,-150.0,0.00015,2]
[422393830,1778925039000,-150.0,0.00015,2]
[422393833,1778925039000,-1139779.13873395,0.00015,2]
[422393827,1778925039000,-150.0,0.00015,2]
[422393815,1778925039000,-4178.02219016,0.00015,2]
[422393824,1778925039000,-150.0,0.00015,2]
[422393792,1778925039000,-500.0,0.00014999,2]
[422393812,1778925039000,-150.0,0.00015,2]
[422393814,1778925039000,-150.0,0.00015,2]
[422393798,1778925039000,-500.0,0.00014999,2]
[422393794,1778925039000,-500.0,0.00014999,2]
[422393790,1778925039000,-500.0,0.00014999,2]
[422393796,1778925039000,-500.0,0.00014999,2]
[422393795,1778925039000,-569.11864888,0.00014999,2]
[422393799,1778925039000,-500.0,0.00014999,2]
[422393800,1778925039000,-500.0,0.00014999,2]
[422393803,1778925039000,-290.24887723,0.00014999,2]
[422393797,1778925039000,-500.0,0.00014999,2]
[422393810,1778925039000,-704.0,0.00015,5]
[422393808,1778925039000,-300.0,0.00014999,2]
[422393809,1778925039000,-300.0,0.00014999,2]
[422393805,1778925039000,-500.0,0.00014999,2]
[422393806,1778925039000,-500.0,0.00014999,2]
[422393811,1778925039000,-560.0,0.00015,5]
[422393804,1778925039000,-500.0,0.00014999,2]
[422393807,1778925039000,-500.0,0.00014999,2]
[422393802,1778925039000,-500.0,0.00014999,2]
[422393840,1778925040000,-67787.4801239,0.00015,2]
[422393839,1778925040000,-500.0,0.00014999,2]
[422393841,1778925040000,-4030.55,0.00015,2]
[422393843,1778925040000,-67213.10425603,0.00015,2]
[422393842,1778925040000,-565.62499999,0.00015,2]
[422393844,1778925040000,-6410.09324054,0.00015,2]
[422393845,1778925040000,-3349.26115119,0.00015,2]
[422393858,1778925046000,-1740.30382601,0.00014514,2]
[422393859,1778925046000,-6083.85709056,0.00015,2]
[422393857,1778925046000,-4497.48439483,0.00014514,2]
[422393860,1778925046000,-9518.29089392,0.00015,2]
[422393862,1778925046000,-831.69959118,0.00015,2]
[422393863,1778925046000,-581.0,0.00015,2]
[422393861,1778925046000,-19967.94527107,0.00015,2]
[422393965,1778925060000,150.0,0.00015,120]
[422393966,1778925115000,1472.21227789,0.00030136,120]
[422393967,1778925165000,171.67446286,0.00025664,120]
[422393969,1778925205000,500.0,0.00028217,120]
[422393968,1778925205000,500.0,0.00024938,120]
[422393970,1778925209000,291.97551381,0.00025664,120]
[422393971,1778925249000,150.0,0.00015,120]
[422393972,1778925284000,196.49419718,0.00025585,120]
[422393973,1778925313000,362.0,0.0002705,120]
[422393974,1778925314000,362.0,0.00028402,120]
[422393975,1778925316000,362.0,0.00029822,120]
[422393977,1778925333000,160.0,0.0002584,120]
[422393978,1778925335000,160.0,0.00027132,120]
[422393979,1778925336000,160.0,0.00028489,120]
[422393980,1778925337000,160.0,0.00029913,120]
[422393982,1778925437000,150.0,0.00015,120]
[422393985,1778925608000,254.0,0.00027103,120]
[422393986,1778925610000,254.0,0.00028458,120]
[422393987,1778925611000,254.0,0.00029881,120]
[422393988,1778925625000,150.0,0.00015,120]
[422393989,1778925631000,161.0,0.0002585,120]
[422393990,1778925632000,161.0,0.00027142,120]
[422393991,1778925634000,161.0,0.00028499,120]
[422393992,1778925635000,161.0,0.00029924,120]
[422394000,1778925706000,151.27,7.407e-05,2]
[422393999,1778925706000,151.27,6.613e-05,2]
[422394003,1778925707000,151.27,9.79e-05,2]
[422394002,1778925707000,151.27,8.995e-05,2]
[422394001,1778925707000,151.27,8.201e-05,2]
[422394006,1778925750000,2094.54089957,8e-05,2]
[422394008,1778925754000,249.97,0.00030137,120]
[422394010,1778925800000,500.0,0.00027226,120]
[422394011,1778925812000,245.06,0.00015,120]
[422394078,1778925909000,178.0,0.00027129,120]
[422394079,1778925911000,178.0,0.00028485,120]
[422394080,1778925912000,178.0,0.0002991,120]
[422394081,1778925929000,163.0,0.00025852,120]
[422394086,1778926101000,456.07,0.00030137,120]
[422394087,1778926209000,178.0,0.00027216,120]
[422394088,1778926210000,178.0,0.00028577,120]
[422394089,1778926211000,178.0,0.00030006,120]
[422394092,1778926232000,-151.27,0.00010584,2]
[422394093,1778926232000,-101.53804943,0.00010642,2]
[422394097,1778926232000,-152.0,0.00011069,2]
[422394095,1778926232000,-1200.0,0.00010699,2]
[422394094,1778926232000,-57.30618797,0.00010642,2]
[422394098,1778926232000,-151.27,0.00011378,2]
[422394099,1778926232000,-150.0,0.00011641,2]
[422394096,1778926232000,-50578.91232364,0.000107,2]
[422394107,1778926232000,-2351.0,0.00012946,2]
[422394108,1778926232000,-151.27,0.00012966,2]
[422394102,1778926232000,-151.27,0.00012172,2]
[422394105,1778926232000,-218.52,0.00012622,2]
[422394104,1778926232000,-269.51,0.00012527,2]
[422394106,1778926232000,-255.0,0.00012712,2]
[422394100,1778926232000,-250.0,0.00011642,2]
[422394101,1778926232000,-1680.0,0.00011769,2]
[422394103,1778926232000,-311.14965157,0.000125,2]
[422394144,1778926233000,-500.0,0.00013698,2]
[422394145,1778926233000,-500.0,0.00013698,2]
[422394147,1778926233000,-500.0,0.00013698,2]
[422394141,1778926233000,-500.0,0.00013698,2]
[422394140,1778926233000,-500.0,0.00013698,2]
[422394143,1778926233000,-500.0,0.00013698,2]
[422394148,1778926233000,-501.56132056,0.00013698,2]
[422394142,1778926233000,-500.0,0.00013698,2]
[422394137,1778926233000,-500.0,0.00013698,2]
[422394158,1778926233000,-198.14496198,0.00013698,2]
[422394146,1778926233000,-500.0,0.00013698,2]
[422394149,1778926233000,-500.0,0.00013698,2]
[422394162,1778926233000,-22743.22568135,0.00013743,2]
[422394159,1778926233000,-166.67,0.00013699,2]
[422394150,1778926233000,-500.0,0.00013698,2]
[422394154,1778926233000,-500.0,0.00013698,2]
[422394157,1778926233000,-500.0,0.00013698,2]
[422394156,1778926233000,-500.0,0.00013698,2]
[422394151,1778926233000,-500.0,0.00013698,2]
[422394153,1778926233000,-500.0,0.00013698,2]
[422394152,1778926233000,-500.0,0.00013698,2]
[422394155,1778926233000,-500.0,0.00013698,2]
[422394161,1778926233000,-150.0,0.00013737,2]
[422394171,1778926233000,-7697.23193529,0.00013965,2]
[422394139,1778926233000,-500.0,0.00013698,2]
[422394170,1778926233000,-171.71,0.00013941,2]
[422394160,1778926233000,-163.0,0.0001372,2]
[422394138,1778926233000,-500.0,0.00013698,2]
[422394125,1778926233000,-795.0,0.0001357,5]
[422394130,1778926233000,-500.0,0.00013698,2]
[422394110,1778926233000,-2000.0,0.00013232,2]
[422394111,1778926233000,-151.88,0.00013286,2]
[422394109,1778926233000,-5172.65007002,0.00013,2]
[422394123,1778926233000,-1084.73905795,0.00013569,3]
[422394113,1778926233000,-150.0,0.00013488,2]
[422394112,1778926233000,-599.5633911,0.00013472,2]
[422394116,1778926233000,-150.0,0.00013488,2]
[422394118,1778926233000,-150.0,0.00013488,2]
[422394119,1778926233000,-171.71,0.00013491,2]
[422394122,1778926233000,-7697.23193533,0.00013498,2]
[422394114,1778926233000,-150.0,0.00013488,2]
[422394117,1778926233000,-150.0,0.00013488,2]
[422394133,1778926233000,-500.0,0.00013698,2]
[422394115,1778926233000,-150.0,0.00013488,2]
[422394121,1778926233000,-172.763,0.00013497,2]
[422394164,1778926233000,-700.0,0.000138,5]
[422394136,1778926233000,-500.0,0.00013698,2]
[422394135,1778926233000,-500.0,0.00013698,2]
[422394124,1778926233000,-1084.73905795,0.00013569,3]
[422394126,1778926233000,-150.0,0.0001357,2]
[422394129,1778926233000,-500.0,0.00013698,2]
[422394128,1778926233000,-7697.23193529,0.00013654,2]
[422394132,1778926233000,-500.0,0.00013698,2]
[422394127,1778926233000,-22743.22568136,0.00013598,2]
[422394131,1778926233000,-500.0,0.00013698,2]
[422394134,1778926233000,-500.0,0.00013698,2]
[422394120,1778926233000,-2029.159,0.00013497,2]
[422394173,1778926233000,-150.0,0.00013987,2]
[422394208,1778926233000,-6054.0,0.00014479,2]
[422394163,1778926233000,-721.7088899,0.00013799,2]
[422394202,1778926233000,-881.168112,0.00014449,2]
[422394211,1778926233000,-4057.05,0.00014497,2]
[422394207,1778926233000,-3639.825,0.00014479,2]
[422394204,1778926233000,-265.745735,0.0001446,2]
[422394212,1778926233000,-310.27,0.00014497,2]
[422394213,1778926233000,-397.11,0.00014497,2]
[422394203,1778926233000,-500.0,0.00014452,2]
[422394205,1778926233000,-22743.22568135,0.00014466,2]
[422394206,1778926233000,-1223.0,0.00014479,2]
[422394165,1778926233000,-7697.23193529,0.0001381,2]
[422394210,1778926233000,-150.0,0.00014487,2]
[422394214,1778926233000,-152.0,0.00014499,7]
[422394201,1778926233000,-520.584056,0.00014449,2]
[422394218,1778926233000,-4135.65,0.00014504,2]
[422394219,1778926233000,-562.85,0.00014504,2]
[422394217,1778926233000,-3000.0,0.000145,5]
[422394215,1778926233000,-152.0,0.00014499,7]
[422394220,1778926233000,-150.99,0.00014504,2]
[422394224,1778926233000,-6991.09,0.00014504,2]
[422394221,1778926233000,-548.61407067,0.00014504,2]
[422394222,1778926233000,-6447.4369821,0.00014504,2]
[422394223,1778926233000,-2651.82894723,0.00014504,2]
[422394225,1778926233000,-1178.96,0.00014504,2]
[422394226,1778926233000,-363.93,0.00014504,2]
[422394227,1778926233000,-3683.26730186,0.00014504,2]
[422394228,1778926233000,-655.85593076,0.00014504,2]
[422394216,1778926233000,-2715.1253733,0.00014499,2]
[422394199,1778926233000,-7697.23193529,0.00014433,2]
[422394209,1778926233000,-150.0,0.00014487,2]
[422394198,1778926233000,-152.0,0.00014431,7]
[422394168,1778926233000,-22743.22568135,0.00013887,2]
[422394197,1778926233000,-152.0,0.00014431,7]
[422394169,1778926233000,-1500.0,0.000139,5]
[422394167,1778926233000,-1519.959192,0.00013886,2]
[422394166,1778926233000,-433.0,0.00013876,2]